[Event "ETCC Open 2023"]
[Site "Budva"]
[Date "2023.11.11"]
[Round "1.21"]
[White "Vitiugov, Nikita"]
[Black "Mchedlishvili, Mikheil"]
[Result "1/2-1/2"]
[ECO "D35"]
[WhiteElo "2712"]
[BlackElo "2564"]
[Annotator "TA"]
[PlyCount "60"]
[EventDate "2023.11.10"]
[EventType "team-tourn"]
[EventCountry "MNE"]
[SourceTitle "playchess.com"]
[Source "ChessBase"]
[SourceQuality "1"]
[WhiteTeam "England"]
[BlackTeam "Georgia"]
[WhiteTeamCountry "ENG"]
[BlackTeamCountry "GEO"]
[TimeControl "40/5400+30:1800+30"]

{[%evp 12,60,45,20,17,0,0,-2,-6,-7,0,0,25,0,20,0,105,110,71,65,40,16,3,0,45,25,41,-23,-8,-24,-29,-11,-21,-22,-16,-20,-33,-37,0,15,4,0,4,0,0,0,14,0,0,0,0]} 1. d4 {[%emt 0:00:20]} d5 {[%emt 0:00:22]} 2. c4 {[%emt 0:00:06]} e6 {[%emt 0:00:23]} 3. Nc3 {[%emt 0:00:22]} Nf6 {[%emt 0:00:40]} 4. cxd5 {[%emt 0:00:24]} Nxd5 {[%emt 0:00:54]} 5. e4 {[%emt 0:00:09]} Nxc3 {[%emt 0:00:06]} 6. bxc3 {[%emt 0:00:03]} c5 {[%emt 0:00:30]} 7. Rb1 {[%emt 0:00:31]} Be7 {[%emt 0:00:56] D35: Queen's Gambit Declined: Exchange Variation.} 8. Nf3 {[%emt 0:00:13]} O-O {[%emt 0:00:39]} 9. h4 $1 {[%emt 0:01:21][%mdl 4] is now more promising than 9.Bc4.} b6 {[%emt 0:01:59]} 10. h5 {[%emt 0:00:53]} h6 {[%emt 0:01:48]} 11. Rh3 {[%emt 0:01:15]} Bb7 {[%emt 0:15:06]} 12. Bd3 {[%emt 0:15:09]} (12. Rg3 $5 {[%cal Rc1h6]} Kh8 13. Bd3 $11) 12... cxd4 {[%emt 0:07:07]} 13. cxd4 {[%emt 0:00:40]} Nc6 {[%emt 0:07:08] [#]} (13... Nd7 $11 {keeps the balance.}) 14. Rg3 $1 $16 {[%emt 0:04:15]} Kh8 {[%emt 0:01:13] [#]} (14... Nxd4 $2 15. Bxh6 Bf6 16. Bxg7 Bxg7 17. h6 Nxf3+ 18. Qxf3 $18 (18. gxf3 Qd4 $18)) 15. Kf1 $146 {[%emt 0:05:42][%cal Od4d5] White is more active.} ({Predecessor:} 15. Bb2 Nb4 16. d5 Bf6 17. Be2 Bxb2 18. Rxb2 Na6 19. Qd4 Rg8 20. Ne5 Qf6 21. Rf3 Qh4 22. Nxf7+ Kh7 23. Bd3 e5 24. Qxe5 Rgf8 25. Qf5+ Kg8 26. e5 {1-0 Sarana,A (2693)-Mendonca,L (2622) AI Cup Play In rapid 2023 (4)}) 15... Rc8 {[%emt 0:10:20]} ({Less strong is} 15... Nxd4 16. Nxd4 Bh4 17. Qg4 Bxg3 18. Qxg3 $16) 16. Be3 {[%emt 0:04:01] Black must now prevent Qd2.} Re8 {[%emt 0:10:00][%cal Bf8e8,Be8e7,Be7e5,Be5d5][%mdl 32]} 17. Kg1 {[%emt 0:11:59]} Bf8 {[%emt 0:01:30]} (17... Bd6 $5 {[%cal Rd6g3]}) 18. Bb5 {[%emt 0:05:22]} Re7 {[%emt 0:01:42]} 19. d5 {[%emt 0:23:37]} (19. Qd2 $14) 19... exd5 $11 {[%emt 0:02:20]} 20. exd5 {[%emt 0:00:06]} ({Don't play} 20. Qxd5 Ne5 21. Qxd8 Rxd8 $17) 20... Ne5 {[%emt 0:05:34]} 21. Nxe5 $1 {[%emt 0:00:55]} Rxe5 {[%emt 0:00:08]} 22. Qg4 $1 {[%emt 0:00:58][%cal Oe3h6]} Rxd5 {[%emt 0:25:52] Hoping for ...f5.} (22... Qxd5 $2 23. Bxh6 g5 24. Bxg5 Rxg5 25. Qxg5 $18) 23. Bxh6 $1 {[%emt 0:02:29][%mdl 64] Back Rank} Qf6 {[%emt 0:00:19]} 24. Bg5 {[%emt 0:07:32]} Qd4 {[%emt 0:01:29]} (24... Qe5 $15 25. Bd3 Rd4) 25. Qxd4 {[%emt 0:02:58] The position is equal.} Rxd4 {[%emt 0:00:02] [#]} 26. h6 $1 {[%emt 0:00:50]} Be4 $132 {[%emt 0:02:21][%mdl 2048] Black is not keeping still} (26... gxh6 $2 27. Bf6+ Kh7 28. Bxd4 $18) 27. Re1 {[%emt 0:00:52]} Bg6 {[%emt 0:00:16]} 28. hxg7+ {[%emt 0:02:00]} Bxg7 {[%emt 0:00:20]} 29. a4 {[%emt 0:01:29]} Kg8 {[%emt 0:00:50]} 30. Be3 {[%emt 0:02:02]} Re4 {[%emt 0:00:29] Weighted Error Value: White=0.09 (flawless) /Black=0.13 (very precise)} 1/2-1/2

[Event "ETCC Open 2023"]
[Site "Budva"]
[Date "2023.11.11"]
[Round "1.22"]
[White "Jobava, Baadur"]
[Black "Howell, David W L"]
[Result "1/2-1/2"]
[ECO "B14"]
[WhiteElo "2568"]
[BlackElo "2676"]
[Annotator "TA"]
[PlyCount "72"]
[EventDate "2023.11.10"]
[EventType "team-tourn"]
[EventCountry "MNE"]
[SourceTitle "playchess.com"]
[Source "ChessBase"]
[SourceQuality "1"]
[WhiteTeam "Georgia"]
[BlackTeam "England"]
[WhiteTeamCountry "GEO"]
[BlackTeamCountry "ENG"]
[TimeControl "40/5400+30:1800+30"]

{[%evp 11,72,-16,-23,-11,-10,-8,-10,-31,-21,-30,-24,-34,-25,-36,-35,-33,-20,-16,-20,-78,-59,-62,-58,-60,-48,-58,-64,-86,-58,-74,-67,-58,-68,-65,-40,-49,-41,-48,-11,-19,-38,-326,-334,-323,-322,-368,-368,-442,-437,-451,-455,-29982,-29983,-29983,-29984,-29982,0,-114,0,-29976,0,-114,0]} 1. e4 {[%emt 0:00:14]} c6 {[%emt 0:00:53]} 2. c4 {[%emt 0:01:09]} d5 {[%emt 0:00:22]} 3. exd5 {[%emt 0:00:14]} Nf6 {[%emt 0:00:59]} 4. Nc3 {[%emt 0:00:28]} cxd5 {[%emt 0:00:14]} 5. d4 {[%emt 0:00:06]} g6 {[%emt 0:01:08]} 6. c5 {[%emt 0:13:17]} Bg7 {[%emt 0:00:17]} 7. Bb5+ {[%emt 0:01:04] B14: Caro-Kann: Panov-Botvinnik Attack with 5...e6 and 5...g6.} Bd7 {[%emt 0:00:22]} 8. Bxd7+ {[%emt 0:06:29]} Qxd7 {[%emt 0:05:26]} 9. Bf4 {[%emt 0:10:24] The position is equal.} Nc6 {[%emt 0:08:47]} 10. Nf3 {[%emt 0:01:05]} Ne4 {[%emt 0:09:20][%cal Og6g5]} 11. Ne2 {[%emt 0:04:57]} O-O {[%emt 0:15:55]} 12. O-O {[%emt 0:03:04] [#]} b6 $146 {[%emt 0:06:01]} ({Predecessor:} 12... Rad8 13. Rb1 f6 14. b4 a6 15. a4 e5 16. Be3 Rc8 17. Qc2 a5 18. bxa5 exd4 19. Nfxd4 Nxa5 {0-1 Veronelli,F (1500)-Pescatore,R (1000) SEMI B025 email 2001}) 13. cxb6 {[%emt 0:00:53]} Qb7 {[%emt 0:01:43]} 14. bxa7 {[%emt 0:19:52]} Qxb2 {[%emt 0:03:56]} 15. Qc1 {[%emt 0:04:17]} (15. Ne5 $11 Nxe5 16. dxe5) 15... Qb6 {[%emt 0:10:42]} 16. Bh6 {[%emt 0:23:31]} Rfc8 {[%emt 0:10:40][%cal Rc6d4]} (16... Rxa7 {simplifies} 17. Bxg7 Kxg7 18. Nc3 Rc8) 17. Bxg7 {[%emt 0:00:07]} Kxg7 {[%emt 0:00:07]} 18. Qe3 {[%emt 0:01:22]} Qxa7 {[%emt 0:03:03]} 19. a3 {[%emt 0:03:21] Prevents Nb4.} Na5 {[%emt 0:07:33]} 20. Ne5 {[%emt 0:01:18]} Nc4 {[%emt 0:03:21]} 21. Nxc4 {[%emt 0:00:07]} Rxc4 {[%emt 0:00:06]} 22. f3 {[%emt 0:00:31]} Nd6 {[%emt 0:03:43] ...Rc2 is the strong threat.} (22... Nf6 $5 {[%cal Re7e5]}) 23. Qe5+ {[%emt 0:00:05]} Kg8 {[%emt 0:00:07]} 24. Qxd5 {[%emt 0:00:21]} Rc2 {[%emt 0:05:28][%cal Bc4c2,Bc2a2,Ba2d2,Bd2d1][%mdl 32]} 25. Rfe1 {[%emt 0:01:56]} Rb8 $36 {[%emt 0:01:10][%mdl 2048] Black is pushing.} 26. Ra2 $2 {[%emt 0:01:01][%mdl 8192]} (26. Rac1 $15 Rxc1 27. Rxc1) 26... e6 $19 {[%emt 0:00:37]} 27. Qxd6 {[%emt 0:00:36]} Rxa2 {[%emt 0:00:05]} 28. Nc3 {[%emt 0:00:19]} Rd2 {[%emt 0:01:43]} (28... Rxa3 $2 29. Ne4 $19) 29. Kh1 {[%emt 0:01:27]} Rbb2 {[%emt 0:00:27]} (29... Qxd4 30. Qxb8+ Kg7 31. Qb3 $18) (29... Rxd4 $2 {too greedy.} 30. Qe5 Rdd8 31. Ne4 $19) 30. Ne4 {[%emt 0:00:15]} Qxd4 {[%emt 0:00:34]} ({Weaker is} 30... Rxg2 31. Qd8+ Kg7 32. Qf6+ Kh6 33. Qh4+ Kg7 34. Qf6+ Kh6 35. Qh4+ Kg7 36. Qf6+ $11) 31. Qe7 {[%emt 0:00:32] [#]} (31. Qxd4 $19 Rxd4 32. h3) 31... Rd1 {[%emt 0:00:37][%cal Rd1e1]} 32. Nf6+ {[%emt 0:00:09]} Kg7 {[%emt 0:00:22][%cal Rd1e1]} 33. Ne8+ {[%emt 0:00:06]} Kg8 $2 {[%emt 0:00:04]} (33... Kh6 34. Qf8+ Kg5 35. Qe7+ f6 36. Qc5+ Qxc5 37. Rxd1 Qc2 38. Rg1 Rb1 39. h3 Rxg1+ 40. Kxg1 Qb1+ 41. Kf2 Qb2+ 42. Ke3 Qb6+ 43. Kd3 Qb5+ 44. Kd4 Qxe8 45. Kc3 Qb5 46. Kd4 Qb2+ 47. Kd3 Qxa3+ 48. Kc4 e5 49. Kd5 Qa2+ 50. Kc5 Qxg2 51. Kc6 Qxf3+ 52. Kc5 e4 53. Kc6 Qxh3 54. Kb7 e3 55. Kc7 Qe6 56. Kb8 e2 57. Kb7 e1=Q 58. Ka8 Qc8+ 59. Ka7 Qg1#) 34. Nf6+ $17 {[%emt 0:00:04]} Kg7 $2 {[%emt 0:01:02][%mdl 8192]} (34... Qxf6 $17 35. Qe8+ Kg7 36. Rxd1 Qd4) 35. Ne8+ {[%emt 0:00:05]} Kg8 $2 {[%emt 0:00:32]} (35... Kh6 {mates} 36. Qf8+ Kg5 37. Qc5+ Qxc5 38. Rxd1 Qc2 39. Rg1 Qc6 40. h4+ Kf5 41. Rd1 Qxe8 42. Rd4 Qb5 43. Rg4 Rb1+ 44. Kh2 Qb8+ 45. Rg3 h5 46. f4 Qxf4 47. a4 g5 48. a5 gxh4 {[%mdl 64] Pin} 49. Kh3 Qxg3#) 36. Nf6+ {[%emt 0:00:49] [#]} Kg7 {[%emt 0:00:00] Weighted Error Value: White=0.48/Black=0.46} (36... Qxf6 $1 $17 {[%cal Rd1e1]} 37. Qe8+ Kg7 38. Rxd1 Qd4) 1/2-1/2

[Event "ETCC Open 2023"]
[Site "Budva"]
[Date "2023.11.11"]
[Round "1.23"]
[White "McShane, Luke J"]
[Black "Kacharava, Nikolozi"]
[Result "1-0"]
[ECO "B44"]
[WhiteElo "2626"]
[BlackElo "2519"]
[Annotator "TA"]
[PlyCount "157"]
[EventDate "2023.11.10"]
[EventType "team-tourn"]
[EventCountry "MNE"]
[SourceTitle "playchess.com"]
[Source "ChessBase"]
[SourceQuality "1"]
[WhiteTeam "England"]
[BlackTeam "Georgia"]
[WhiteTeamCountry "ENG"]
[BlackTeamCountry "GEO"]
[TimeControl "40/5400+30:1800+30"]

{[%evp 18,157,8,10,13,15,14,16,15,12,10,14,13,11,17,13,12,12,13,9,8,4,2,2,11,1,2,0,10,0,0,0,0,0,0,0,0,0,0,0,0,0,0,0,1,0,21,0,2,2,2,2,6,3,117,113,113,108,114,114,114,118,114,113,113,113,113,113,114,114,114,114,114,114,114,0,114,114,122,122,122,122,122,122,205,122,330,330,376,0,0,0,238,245,252,268,275,8,29959,1094,29962,-8,29962,29963,29961,1138,29962,29963,29963,29965,29966,29966,29964,29964,29951,5853,29964,29967,29958,4597,29970,29970,29971,29972,29972,29973,29973,29974,29976,29975,29979,29979,29985,29986,29989,29990,29990,29990,29992,29993,29995,29996]} 1. e4 {[%emt 0:00:04]} c5 {[%emt 0:00:29]} 2. Nf3 {[%emt 0:00:08][%cal Bg1f3,Bf3d4,Bd4b5,Bb5d4][%mdl 32]} e6 {[%emt 0:00:31]} 3. d4 {[%emt 0:00:07]} cxd4 {[%emt 0:00:50]} 4. Nxd4 {[%emt 0:00:07]} Nc6 {[%emt 0:00:54]} 5. Nb5 {[%emt 0:00:13]} d6 {[%emt 0:01:43]} 6. c4 {[%emt 0:00:07]} Nf6 {[%emt 0:01:04]} 7. N1c3 {[%emt 0:00:05]} a6 {[%emt 0:01:37]} 8. Nd4 {[%emt 0:00:06]} Be7 {[%emt 0:20:43]} 9. Be2 {[%emt 0:00:20]} O-O {[%emt 0:02:45]} 10. O-O {[%emt 0:00:21]} d5 {[%emt 0:08:27] B44: Sicilian: Taimanov: 5 Nb5.} 11. cxd5 {[%emt 0:01:19]} exd5 {[%emt 0:00:08]} 12. Nxc6 {[%emt 0:01:06]} bxc6 {[%emt 0:00:04] The position is equal.} 13. exd5 {[%emt 0:00:07]} Nxd5 {[%emt 0:02:15]} 14. Nxd5 {[%emt 0:00:09]} cxd5 {[%emt 0:05:33]} 15. Be3 {[%emt 0:00:09]} Bf6 {[%emt 0:02:35]} 16. Bd4 {[%emt 0:02:07]} Rb8 {[%emt 0:04:38]} 17. b3 {[%emt 0:01:51]} Re8 {[%emt 0:03:31] ...Bxd4 would be deadly.} 18. Bf3 {[%emt 0:00:28]} (18. Bh5 {with more complications.} Bf5 19. Rc1 Bxd4 20. Qxd4 Qa5 21. Rc5) 18... Be6 {[%emt 0:02:43] [#]} 19. Qd2 $146 {[%emt 0:03:27]} ({Predecessor:} 19. Rc1 a5 20. Bxf6 Qxf6 21. Rc5 a4 22. bxa4 Qb2 23. Rc2 Qa3 24. Rd2 Ra8 25. Bxd5 Bxd5 26. Rxd5 Qxa4 27. Qxa4 Rxa4 {½-½ Malakhov,V (2675)-Potkin,V (2613) RUS Cup final 2008 (2.2)}) 19... Bxd4 {[%emt 0:04:13]} 20. Qxd4 {[%emt 0:00:09]} Qd6 {[%emt 0:00:41]} 21. Rfc1 {[%emt 0:04:36]} Rec8 {[%emt 0:02:33]} 22. h3 {[%emt 0:04:28]} h6 {[%emt 0:02:57]} 23. Rxc8+ {[%emt 0:05:31]} Rxc8 {[%emt 0:00:08]} 24. Rd1 {[%emt 0:00:11]} Qa3 {[%emt 0:06:17]} 25. Rd2 {[%emt 0:01:37]} Qc1+ {[%emt 0:08:21]} 26. Rd1 {[%emt 0:07:20]} Qa3 {[%emt 0:01:43]} 27. Qd2 {[%emt 0:10:48]} a5 {[%emt 0:01:51]} 28. Kh2 {[%emt 0:14:30]} Qd6+ {[%emt 0:04:55]} 29. g3 {[%emt 0:00:59]} Rc5 {[%emt 0:01:08]} 30. Qb2 {[%emt 0:05:31]} Qb6 {[%emt 0:02:35]} 31. Rd2 {[%emt 0:02:29]} Qb4 {[%emt 0:00:50]} 32. h4 {[%emt 0:04:42]} (32. a3 $5 {[%cal Ra3b4]} Qb6 33. Kg2 $11) 32... Qb5 {[%emt 0:03:36]} 33. Kg2 {[%emt 0:04:37]} Qc6 {[%emt 0:00:31]} 34. Qd4 {[%emt 0:08:58]} Rc2 {[%emt 0:02:30]} 35. a3 {[%emt 0:00:56] Hoping for Rxc2.} (35. Bxd5 $2 Rxd2 36. Qxd2 Bxd5+ $19) 35... Qc3 {[%emt 0:01:38]} (35... Rc5 $11 {keeps the balance.}) 36. Qxc3 $16 {[%emt 0:02:43]} Rxc3 {[%emt 0:00:01]} 37. Bxd5 {[%emt 0:00:13]} Bxd5+ {[%emt 0:00:04]} 38. Rxd5 {[%emt 0:00:07]} Rxb3 {[%emt 0:00:09]} 39. Rxa5 {[%emt 0:00:04][%mdl 4096] Endgame KR-KR} h5 {[%emt 0:00:46]} 40. a4 {[%emt 0:12:46]} Ra3 {[%emt 0:00:12]} 41. Ra8+ {[%emt 0:31:49]} Kh7 {[%emt 0:30:03]} 42. a5 {[%emt 0:00:06]} g6 {[%emt 0:02:02]} 43. Kf1 {[%emt 0:03:57]} Ra2 {[%emt 0:00:00]} 44. a6 {[%emt 0:00:00]} Kg7 {[%emt 0:00:00]} 45. Kg2 {[%emt 0:00:00]} Ra3 {[%emt 0:00:00]} 46. Kf1 {[%emt 0:00:00]} Ra2 $1 {[%emt 0:00:00]} 47. Ke1 {[%emt 0:00:00]} Kf6 {[%emt 0:00:00]} 48. f3 {[%emt 0:00:00]} Ra3 {[%emt 0:00:00]} 49. Ke2 {[%emt 0:00:00]} Kg7 {[%emt 0:00:00]} 50. Kf2 {[%emt 0:00:00]} Kf6 {[%emt 0:00:00]} 51. g4 {[%emt 0:00:00]} (51. a7 $18) 51... hxg4 $2 {[%emt 0:00:00]} (51... Ke6 $16 52. a7 Ke7) 52. fxg4 $18 {[%emt 0:00:00]} Ra4 {[%emt 0:00:00]} 53. g5+ {[%emt 0:00:23]} ({Better is} 53. a7 $18) 53... Kf5 $11 {[%emt 0:04:19]} 54. a7 $2 {[%emt 0:00:48]} (54. Ke2 $11 Rxh4 55. Rf8) 54... Rf4+ $18 {[%emt 0:00:32]} 55. Kg2 $1 {[%emt 0:01:03] White wants to mate with Re8.} Rg4+ {[%emt 0:02:03]} 56. Kh3 {[%emt 0:00:09] Intending Re8 and mate.} Ra4 {[%emt 0:00:25] [#]} 57. h5 $2 {[%emt 0:00:47]} (57. Kg3 $1 $18 {[%mdl 512]}) 57... Ra3+ $2 {[%emt 0:00:46][%mdl 8192]} (57... Kxg5 $11 58. Kg2 f5) 58. Kh2 {[%emt 0:00:22]} (58. Kg2 $142 Ra2+ 59. Kf3 gxh5 60. g6 Ra3+ 61. Kf2 Ra2+ 62. Ke3 Ra3+ 63. Kd2 Ra2+ 64. Kd3 Ra3+ 65. Kc2) 58... Ra2+ {[%emt 0:00:22]} 59. Kh1 $2 {[%emt 0:00:15]} (59. Kg3 {mates} gxh5 60. g6 (60. Kh4 Kf4 $17) 60... Ra3+ 61. Kf2 Ra2+ 62. Ke1 Ra1+ 63. Kd2 fxg6 64. Rf8+ Ke4 65. a8=Q+ (65. a8=B+ Ke5 $11) 65... Rxa8 66. Rxa8) 59... Ra1+ $2 {[%emt 0:00:20][%mdl 8192]} (59... gxh5 60. g6 Ra1+ 61. Kg2 Ra2+ 62. Kf3 Ra3+ 63. Ke2 Ra2+ 64. Kd1 $18) (59... Kg4 $11 60. Rc8 (60. h6 $2 {gets mated.} Kg3 61. Re8 Ra1+) 60... Rxa7) 60. Kg2 {[%emt 0:00:22]} Ra2+ {[%emt 0:00:28]} 61. Kg1 {[%emt 0:00:16]} (61. Kf1 $142 Ra1+ 62. Kf2 gxh5 63. g6 Ra2+ 64. Ke3 Kf6 65. gxf7 Kxf7 66. Rh8 Ra3+ 67. Kf2 Ra2+ 68. Kg3) 61... Ra1+ {[%emt 0:00:08]} 62. Kf2 {[%emt 0:00:05]} Ra2+ {[%emt 0:00:17]} 63. Kf1 {[%emt 0:00:11]} Ra1+ {[%emt 0:00:11]} 64. Ke2 $1 {[%emt 0:00:06]} Ra2+ {[%emt 0:00:58]} 65. Ke1 {[%emt 0:00:06]} Ra1+ {[%emt 0:01:07] [#]} 66. Kd2 $1 {[%emt 0:00:08]} Ra2+ {[%emt 0:00:42]} 67. Kd1 {[%emt 0:00:08]} Ra1+ {[%emt 0:00:23] [#]} 68. Kc2 $1 {[%emt 0:00:06] h6 would kill now.} gxh5 {[%emt 0:00:39] [#]} 69. g6 $1 {[%emt 0:00:09][%mdl 512] White mates.} fxg6 {[%emt 0:00:34]} 70. Rf8+ {[%emt 0:00:06]} Kg4 {[%emt 0:00:28]} 71. a8=Q {[%emt 0:00:09]} ({Not} 71. a8=B h4 $11) 71... Rxa8 {[%emt 0:00:02]} 72. Rxa8 {[%emt 0:00:06] KR-KPP} Kf3 {[%emt 0:01:00]} 73. Kd2 {[%emt 0:01:30]} Kf2 {[%emt 0:00:30]} 74. Rh8 {[%emt 0:01:48]} g5 {[%emt 0:00:31]} 75. Rxh5 {[%emt 0:00:17]} g4 {[%emt 0:00:03]} 76. Rf5+ {[%emt 0:00:08]} Kg2 {[%emt 0:00:08]} 77. Ke2 {[%emt 0:00:09]} g3 {[%emt 0:00:06]} 78. Rg5 {[%emt 0:00:16]} Kh2 {[%emt 0:00:24]} 79. Kf3 {[%emt 0:00:06] Weighted Error Value: White=0.35/Black=0.46} 1-0

[Event "ETCC Open 2023"]
[Site "Budva"]
[Date "2023.11.11"]
[Round "1.24"]
[White "Quparadze, Giga"]
[Black "Haria, Ravi"]
[Result "1/2-1/2"]
[ECO "C60"]
[WhiteElo "2490"]
[BlackElo "2508"]
[Annotator "RC"]
[PlyCount "77"]
[EventDate "2023.11.10"]
[EventType "team-tourn"]
[EventCountry "MNE"]
[SourceTitle "playchess.com"]
[Source "ChessBase"]
[SourceQuality "1"]
[WhiteTeam "Georgia"]
[BlackTeam "England"]
[WhiteTeamCountry "GEO"]
[BlackTeamCountry "ENG"]
[TimeControl "40/5400+30:1800+30"]

1. e4 {[%emt 0:00:02]} e5 {[%emt 0:00:10]} 2. Nf3 {[%emt 0:00:05]} Nc6 {[%emt 0:00:08]} 3. Bb5 {[%emt 0:00:04]} a6 {[%emt 0:00:16]} 4. Ba4 {[%emt 0:00:04]} Nf6 {[%emt 0:00:12]} 5. O-O {[%emt 0:00:04]} d6 {[%emt 0:00:59]} 6. Re1 {[%emt 0:00:43]} Bd7 {[%emt 0:01:00]} 7. c3 {[%emt 0:00:07]} g6 {[%emt 0:00:29]} 8. d4 {[%emt 0:00:07]} Bg7 {[%emt 0:00:13]} 9. h3 {[%emt 0:00:44]} O-O {[%emt 0:00:39]} 10. Nbd2 {[%emt 0:00:07]} exd4 {[%emt 0:01:46]} 11. cxd4 {[%emt 0:04:21]} Nb4 {[%emt 0:00:11]} 12. Bxd7 {[%emt 0:00:14]} Qxd7 {[%emt 0:00:50]} 13. Nf1 {[%emt 0:02:36]} c5 {[%emt 0:05:24]} 14. a3 {[%emt 0:00:54]} Nc6 {[%emt 0:00:29]} 15. d5 {[%emt 0:00:04]} Nd4 {[%emt 0:01:13]} 16. Nxd4 {[%emt 0:00:46]} cxd4 {[%emt 0:00:08]} 17. Qxd4 {[%emt 0:01:06]} Rfe8 {[%emt 0:03:02]} 18. Qd3 {[%emt 0:03:41]} Qb5 {[%emt 0:02:28]} 19. Qxb5 {[%emt 0:00:25]} axb5 {[%emt 0:00:05]} 20. Ng3 {[%emt 0:00:03]} Nxd5 {[%emt 0:03:44]} 21. Rb1 {[%emt 0:00:11]} Nb6 {[%emt 0:16:27]} 22. Rd1 {[%emt 0:00:04]} d5 {[%emt 0:32:18]} 23. exd5 {[%emt 0:02:26]} Rad8 {[%emt 0:02:53]} 24. d6 {[%emt 0:00:12]} Nc4 {[%emt 0:03:19]} 25. Bf4 {[%emt 0:04:09]} Bxb2 {[%emt 0:08:03]} 26. Rd5 {[%emt 0:00:59]} Rd7 {[%emt 0:07:29]} 27. Rxb5 {[%emt 0:03:01]} Bxa3 {[%emt 0:01:23]} 28. Rd1 {[%emt 0:14:21]} f5 {[%emt 0:01:17]} 29. Rd4 {[%emt 0:00:59]} Rc8 {[%emt 0:00:33]} 30. Rb3 {[%emt 0:02:51]} Bb2 {[%emt 0:00:20]} 31. Rd5 {[%emt 0:00:17]} Bf6 {[%emt 0:01:12]} 32. Nf1 {[%emt 0:01:24]} Kf7 {[%emt 0:01:15]} 33. Rdb5 {[%emt 0:07:54]} g5 {[%emt 0:03:28]} 34. Rxb7 {[%emt 0:00:36]} Rxb7 {[%emt 0:00:25]} 35. Rxb7+ {[%emt 0:00:10]} Ke6 {[%emt 0:00:20]} 36. Bh2 {[%emt 0:01:24]} f4 {[%emt 0:02:16]} 37. d7 {[%emt 0:16:51]} Rd8 {[%emt 0:00:25]} 38. h4 {[%emt 0:00:04]} Rxd7 {[%emt 0:01:28]} 39. Rxd7 {[%emt 0:00:14]} 1/2-1/2

[Event "ETCC Open 2023"]
[Site "Budva"]
[Date "2023.11.11"]
[Round "1.25"]
[White "Anton Guijarro, David"]
[Black "Laurusas, Tomas"]
[Result "1/2-1/2"]
[ECO "C42"]
[WhiteElo "2668"]
[BlackElo "2566"]
[Annotator "TA"]
[PlyCount "96"]
[EventDate "2023.11.10"]
[EventType "team-tourn"]
[EventCountry "MNE"]
[SourceTitle "playchess.com"]
[Source "ChessBase"]
[SourceQuality "1"]
[WhiteTeam "Spain"]
[BlackTeam "Lithuania"]
[WhiteTeamCountry "ESP"]
[BlackTeamCountry "LTU"]
[TimeControl "40/5400+30:1800+30"]

{[%evp 25,96,38,44,34,31,35,51,31,47,29,34,32,40,0,63,71,85,70,103,93,100,44,87,74,72,34,33,37,38,19,42,41,43,44,39,39,42,29,30,10,10,10,10,10,10,0,3,0,0,0,8,8,8,8,8,0,0,0,8,0,0,0,0,0,0,0,0,0,0,0,0,0,0]} 1. e4 {[%emt 0:00:06]} e5 {[%emt 0:00:11]} 2. Nf3 {[%emt 0:00:11]} Nf6 {[%emt 0:00:10][%cal Bg8f6,Bf6e4,Be4d2][%mdl 32]} 3. Nxe5 {[%emt 0:00:33]} d6 {[%emt 0:00:08]} 4. Nf3 {[%emt 0:00:06]} Nxe4 {[%emt 0:00:09]} 5. d4 {[%emt 0:00:29]} d5 {[%emt 0:00:15]} 6. Bd3 {[%emt 0:00:10]} Nc6 {[%emt 0:01:24]} 7. O-O {[%emt 0:00:55]} Be7 {[%emt 0:00:08]} 8. Nbd2 {[%emt 0:01:55]} Bf5 {[%emt 0:02:36]} 9. Re1 {[%emt 0:00:26]} Nxd2 {[%emt 0:00:37]} 10. Qxd2 {[%emt 0:00:29]} Bxd3 {[%emt 0:00:10]} 11. Qxd3 {[%emt 0:00:05]} O-O {[%emt 0:01:31]} 12. c3 {[%emt 0:00:38]} Qd7 {[%emt 0:09:10]} 13. Bf4 {[%emt 0:01:52]} a6 {[%emt 0:00:11]} 14. Re2 {[%emt 0:00:49] C42: Petroff Defence: 3 Nxe5 and unusual White 3rd moves.} Rae8 {[%emt 0:00:16]} 15. Rae1 {[%emt 0:00:47]} Bd8 {[%emt 0:00:16]} 16. h4 {[%emt 0:02:53] White is slightly better.} Rxe2 {[%emt 0:03:18]} 17. Rxe2 {[%emt 0:04:25]} h6 {[%emt 0:12:16] [#]} 18. Qe3 $146 {[%emt 0:06:23]} ({Predecessor:} 18. Bg3 Bf6 19. h5 Nd8 20. Bh4 Ne6 21. g3 Bxh4 22. Nxh4 Re8 23. Qf3 c6 24. Qg4 {½-½ Necchi,S (2328)-Brorens,D (2309) WS MN/B/02 email 2019}) 18... Qf5 {[%emt 0:03:27]} 19. Bg3 {[%emt 0:26:38]} f6 {[%emt 0:16:16]} (19... Qb1+ $11 20. Ne1 Qxa2) 20. Ne1 $14 {[%emt 0:02:51]} b6 {[%emt 0:01:29]} 21. b4 {[%emt 0:09:59]} g5 {[%emt 0:04:59]} 22. a4 {[%emt 0:02:38]} Kg7 {[%emt 0:05:57]} 23. Kf1 {[%emt 0:05:40]} (23. Nc2 $16) 23... Na7 {[%emt 0:11:56]} 24. Qd2 {[%emt 0:13:23]} Nc8 {[%emt 0:13:18]} 25. Qd3 {[%emt 0:08:26]} Qxd3 {[%emt 0:00:25]} 26. Nxd3 {[%emt 0:00:03]} Kf7 {[%emt 0:00:32]} 27. Ra2 {[%emt 0:05:39]} gxh4 {[%emt 0:05:34]} 28. Bxh4 {[%emt 0:00:43]} Nd6 {[%emt 0:00:30]} 29. a5 {[%emt 0:02:35]} bxa5 {[%emt 0:03:09]} 30. Rxa5 {[%emt 0:01:28]} Nb5 {[%emt 0:00:01]} 31. Rxa6 {[%emt 0:00:15] Nf4 would be deadly.} Nxc3 {[%emt 0:00:07]} 32. Rc6 {[%emt 0:01:29]} (32. Bg3 $5) 32... Nb5 {[%emt 0:00:12] The position is equal.} 33. Rc5 {[%emt 0:00:14][%csl LRb5,LRd5]} Nxd4 {[%emt 0:03:19]} 34. Rxd5 {[%emt 0:00:06]} Ne6 {[%emt 0:00:20]} 35. f4 {[%emt 0:01:54]} Be7 {[%emt 0:00:12]} 36. f5 {[%emt 0:00:32]} Ng7 {[%emt 0:00:13]} 37. g4 {[%emt 0:00:42]} Rd8 {[%emt 0:01:21]} 38. Rxd8 {[%emt 0:00:18]} Bxd8 $11 {[%emt 0:00:05][%mdl 4096] Endgame KBN-KBN} 39. Ke2 {[%emt 0:00:34]} h5 {[%emt 0:00:26]} 40. Kf3 {[%emt 0:00:19]} hxg4+ {[%emt 0:01:41]} 41. Kxg4 {[%emt 0:30:04]} c6 {[%emt 0:31:45]} 42. Bf2 {[%emt 0:00:00]} Ne8 {[%emt 0:00:00]} 43. Bc5 {[%emt 0:00:00]} Be7 {[%emt 0:00:00]} 44. Nf4 {[%emt 0:00:00]} Nc7 {[%emt 0:00:00]} 45. Kf3 {[%emt 0:00:00]} Na6 {[%emt 0:00:00][%csl LRb4,LRc5]} 46. Nd3 {[%emt 0:00:00]} Nc7 {[%emt 0:00:00]} 47. Nf4 {[%emt 0:00:00]} Na6 {[%emt 0:00:00][%csl LRb4,LRc5]} 48. Nd3 {[%emt 0:00:00]} Nc7 {[%emt 0:00:00] Weighted Error Value: White=0.10 (very precise) /Black=0.06 (flawless)} 1/2-1/2